{"text_format":"1","workbook":"xlsx","n_sheets":6,"sheets":["شباط","جداول","نيسان","حزيران","أيار","معادلات"],"not_rendered":{"charts":0,"images":0,"macros":1,"external_links":1,"defined_names":0,"comments":0,"pivot_tables":0},"unopened":[],"bounds":{"document_bytes":16777216,"sheet_cells":100000,"rows_first":2000,"rows_last":500,"rows_between":2000,"halvings":0,"cell_chars":16384,"cell_head_chars":4096},"cells_cut":0,"cells_raw":0,"read":"whole","date_system":"1900"}

{"sheet":"شباط","index":0,"n_rows":9,"n_cols":26,"rows_kept":9,"cut":false,"hidden":false,"merged":[[0,24,1,24]]}
[null,null,null,null,null,null,null,null,null,null,null,null,null,null,null,null,null,null,null,null,null,null,null,null,"شباط"]
[]
["الرقم","الإسم","هاتف","رقم الزبون","تاريخ الإشتراك","رقم العلبة","المنطقة","الشارع","البناية","الطابق","العدد","كارد/1","كارد/2","كارد/3","كارد/4","كارد/5","كارد/6","كارد/7","كارد/8","نظام تشفير","إشتراك شهري","إنتقال المتأخرات","المبلغ المطلوب","ملاحظة","الشهر","مدفوع / غير"]
[1,"سليم علي ناصر",null,11,"19/01/2020",401,"الروشة","العام",null,3,1,8523654,null,null,null,null,null,null,null,10000,20000,null,{"$f":"SUM(T4:V4)","v":30000},null,{"$f":"$Y$1","v":"شباط"},"✓"]
[2,"سمير محمد احمد",null,12,"20/01/2020",401,"الحمرا","العام",null,8,1,8523655,null,null,null,null,null,null,null,10000,20000,null,{"$f":"SUM(T5:V5)","v":30000},null,{"$f":"$Y$1","v":"شباط"},"✕ "]
[3,"سميرة علي ناصر",null,52,"21/01/2020",401,"سيران","العام",null,7,1,8523656,null,null,null,null,null,null,null,10000,20000,null,30000,null,"شباط","✓"]
[4,"سناء محمد علي ",null,26,"2020-01-22",202,"الروشة","العام",null,5,1,8523657,null,null,null,null,null,null,null,10000,20000,null,30000,null,"شباط","✓"]
[5,"سوسن امين طه",null,50,"23/01/2020",202,"الروشة","العام",null,2,1,8523658,null,null,null,null,null,null,null,10000,20000,null,30000,null,"شباط","✓"]
[6,"قاسم  حميدان",null,43,"24/01/2020",202,"الحمرا","العام",null,3,1,8523659,null,null,null,null,null,null,null,10000,20000,null,30000,null,"شباط","✓"]

{"sheet":"جداول","index":1,"n_rows":9,"n_cols":26,"rows_kept":9,"cut":false,"hidden":false,"merged":[[0,24,1,24]]}
[null,null,null,null,null,null,null,null,null,null,null,null,null,null,null,null,null,null,null,null,null,null,null,null,{"$f":"شباط!Y1","v":"شباط"}]
[]
["الرقم","الإسم","هاتف","رقم الزبون","تاريخ الإشتراك","رقم العلبة","المنطقة","الشارع","البناية","الطابق","العدد","كارد/1","كارد/2","كارد/3","كارد/4","كارد/5","كارد/6","كارد/7","كارد/8","نظام تشفير","إشتراك شهري","إنتقال المتأخرات","المبلغ المطلوب","ملاحظة","الشهر","مدفوع / غير"]
[null,null,null,null,null,null,null,null,null,null,null,null,null,null,null,null,null,null,null,null,null,null,null,null,null,"✓"]
[null,null,null,null,null,null,null,null,null,null,null,null,null,null,null,null,null,null,null,null,null,null,null,null,null,"✕ "]
[null,null,null,null,null,null,null,null,null,null,null,null,null,null,null,null,null,null,null,null,null,null,null,null,null,"✓"]
[null,null,null,null,null,null,null,null,null,null,null,null,null,null,null,null,null,null,null,null,null,null,null,null,null,"✓"]
[null,null,null,null,null,null,null,null,null,null,null,null,null,null,null,null,null,null,null,null,null,null,null,null,null,"✓"]
[null,null,null,null,null,null,null,null,null,null,null,null,null,null,null,null,null,null,null,null,null,null,null,null,null,"✓"]

{"sheet":"نيسان","index":2,"n_rows":9,"n_cols":26,"rows_kept":9,"cut":false,"hidden":false,"merged":[[0,24,1,24]]}
[null,null,null,null,null,null,null,null,null,null,null,null,null,null,null,null,null,null,null,null,null,null,null,null,"نيسان"]
[]
["الرقم","الإسم","هاتف","رقم الزبون","تاريخ الإشتراك","رقم العلبة","المنطقة","الشارع","البناية","الطابق","العدد","كارد/1","كارد/2","كارد/3","كارد/4","كارد/5","كارد/6","كارد/7","كارد/8","نظام تشفير","إشتراك شهري","إنتقال المتأخرات","المبلغ المطلوب","ملاحظة","الشهر","مدفوع / غير"]
[1,"سليم علي ناصر",null,11,"19/01/2020",401,"الروشة","العام",null,3,1,8523654,null,null,null,null,null,null,null,10000,20000,null,{"$f":"SUM(T4:V4)","v":30000},null,{"$f":"$Y$1","v":"نيسان"},"✓"]
[2,"سمير محمد احمد",null,12,"20/01/2020",401,"الحمرا","العام",null,8,1,8523655,null,null,null,null,null,null,null,10000,20000,null,{"$f":"SUM(T5:V5)","v":30000},null,{"$f":"$Y$1","v":"نيسان"},"✕ "]
[3,"سميرة علي ناصر",null,52,"21/01/2020",401,"سيران","العام",null,7,1,8523656,null,null,null,null,null,null,null,10000,20000,null,30000,null,"نيسان","✓"]
[4,"سناء محمد علي أحمد",null,26,"2020-01-22",202,"الروشة","العام",null,5,1,8523657,null,null,null,null,null,null,null,10000,20000,null,30000,null,"نيسان","✓"]
[5,"سوسن امين ",null,50,"23/01/2020",202,"الروشة","العام",null,2,1,8523658,null,null,null,null,null,null,null,10000,20000,null,30000,null,"نيسان","✓"]
[6,"قاسم علاء حميدان",null,43,"24/01/2020",202,"الحمرا","العام",null,3,1,8523659,null,null,null,null,null,null,null,10000,20000,null,30000,null,"نيسان","✓"]

{"sheet":"حزيران","index":3,"n_rows":9,"n_cols":26,"rows_kept":9,"cut":false,"hidden":false,"merged":[[0,24,1,24]]}
[null,null,null,null,null,null,null,null,null,null,null,null,null,null,null,null,null,null,null,null,null,null,null,null,"حزيران"]
[]
["الرقم","الإسم","هاتف","رقم الزبون","تاريخ الإشتراك","رقم العلبة","المنطقة","الشارع","البناية","الطابق","العدد","كارد/1","كارد/2","كارد/3","كارد/4","كارد/5","كارد/6","كارد/7","كارد/8","نظام تشفير","إشتراك شهري","إنتقال المتأخرات","المبلغ المطلوب","ملاحظة","الشهر","مدفوع / غير"]
[1,"سليم علي ناصر",null,11,"19/01/2020",401,"الروشة","العام",null,3,1,8523654,null,null,null,null,null,null,null,10000,20000,null,{"$f":"SUM(T4:V4)","v":30000},null,{"$f":"$Y$1","v":"حزيران"},"✓"]
[2,"سمير محمد احمد",null,12,"20/01/2020",401,"الحمرا","العام",null,8,1,8523655,null,null,null,null,null,null,null,10000,20000,null,{"$f":"SUM(T5:V5)","v":30000},null,{"$f":"$Y$1","v":"حزيران"},"✕ "]
[3,"سميرة علي ناصر",null,52,"21/01/2020",401,"سيران","العام",null,7,1,8523656,null,null,null,null,null,null,null,10000,20000,null,30000,null,"حزيران","✓"]
[4,"سناء محمد علي أحمد",null,26,"2020-01-22",202,"الروشة","العام",null,5,1,8523657,null,null,null,null,null,null,null,10000,20000,null,30000,null,"حزيران","✓"]
[5,"سوسن امين طه",null,50,"23/01/2020",202,"الروشة","العام",null,2,1,8523658,null,null,null,null,null,null,null,10000,20000,null,30000,null,"حزيران","✓"]
[6,"قاسم علاء حميدان",null,43,"24/01/2020",202,"الحمرا","العام",null,3,1,8523659,null,null,null,null,null,null,null,10000,20000,null,30000,null,"حزيران","✓"]

{"sheet":"أيار","index":4,"n_rows":9,"n_cols":26,"rows_kept":9,"cut":false,"hidden":false,"merged":[[0,24,1,24]]}
[null,null,null,null,null,null,null,null,null,null,null,null,null,null,null,null,null,null,null,null,null,null,null,null,"أيار"]
[]
["الرقم","الإسم","هاتف","رقم الزبون","تاريخ الإشتراك","رقم العلبة","المنطقة","الشارع","البناية","الطابق","العدد","كارد/1","كارد/2","كارد/3","كارد/4","كارد/5","كارد/6","كارد/7","كارد/8","نظام تشفير","إشتراك شهري","إنتقال المتأخرات","المبلغ المطلوب","ملاحظة","الشهر","مدفوع / غير"]
[1,"سليم علي ناصر",null,11,"19/01/2020",401,"الروشة","العام",null,3,1,8523654,null,null,null,null,null,null,null,10000,20000,null,{"$f":"SUM(T4:V4)","v":30000},null,{"$f":"$Y$1","v":"أيار"},"✓"]
[2,"سمير محمد احمد",null,12,"20/01/2020",401,"الحمرا","العام",null,8,1,8523655,null,null,null,null,null,null,null,10000,20000,null,{"$f":"SUM(T5:V5)","v":30000},null,{"$f":"$Y$1","v":"أيار"},"✕ "]
[3,"سميرة علي ناصر",null,52,"21/01/2020",401,"سيران","العام",null,7,1,8523656,null,null,null,null,null,null,null,10000,20000,null,30000,null,"أيار","✓"]
[4,"سناء محمد علي أحمد",null,26,"2020-01-22",202,"الروشة","العام",null,5,1,8523657,null,null,null,null,null,null,null,10000,20000,null,30000,null,"أيار","✓"]
[5,"سوسن امين طه",null,50,"23/01/2020",202,"الروشة","العام",null,2,1,8523658,null,null,null,null,null,null,null,10000,20000,null,30000,null,"أيار","✓"]
[6,"قاسم علاء حميدان",null,43,"24/01/2020",202,"الحمرا","العام",null,3,1,8523659,null,null,null,null,null,null,null,10000,20000,null,30000,null,"أيار","✓"]

{"sheet":"معادلات","index":5,"n_rows":7,"n_cols":5,"rows_kept":7,"cut":false,"hidden":false,"merged":[]}
[]
[]
[]
["المناطق"]
["الحمرا",null,null,null,"✓"]
["الروشة"]
["سيران",null,null,null,"✕ "]